fUSD/lending_fUSD_20240319
["ID","MTS","AMOUNT","RATE_DAILY","PERIOD"]
[319618621,1710891040024,-584.34,0.0003041,2]
[319618623,1710891040034,-8326.0,0.00030411,4]
[319618625,1710891040043,-155.0,0.00030682,4]
[319618626,1710891040052,-709.85562431,0.00030683,4]
[319618627,1710891040064,-972.05065311,0.00030683,4]
[319618628,1710891040073,-516.52238682,0.00030684,2]
[319618629,1710891040083,-2909.04,0.00030684,2]
[319618630,1710891040093,-396.44509714,0.00030684,2]
[319618631,1710891040102,-500.0,0.00030684,2]
[319618632,1710891040111,-500.0,0.00030684,2]
[319618633,1710891040120,-500.0,0.00030684,2]
[319618634,1710891040129,-500.0,0.00030684,2]
[319618635,1710891040139,-500.0,0.00030684,2]
[319618636,1710891040148,-500.0,0.00030684,2]
[319618637,1710891040158,-500.0,0.00030684,2]
[319618638,1710891040170,-1798.01,0.00030684,2]
[319618639,1710891040179,-500.0,0.00030684,2]
[319618640,1710891040188,-500.0,0.00030684,2]
[319618641,1710891040198,-2762.89,0.00030684,2]
[319618642,1710891040207,-500.0,0.00030684,2]
[319618643,1710891040217,-564.63,0.00030684,2]
[319618644,1710891040227,-500.0,0.00030684,2]
[319618645,1710891040236,-500.0,0.00030684,2]
[319618646,1710891040245,-500.0,0.00030684,2]
[319618647,1710891040255,-500.0,0.00030684,2]
[319618648,1710891040264,-500.0,0.00030684,2]
[319618649,1710891040273,-1685.14,0.00030684,2]
[319618650,1710891040282,-500.0,0.00030684,2]
[319618651,1710891040291,-500.0,0.00030684,2]
[319618652,1710891040300,-782.93,0.00030684,2]
[319618653,1710891040312,-731.93,0.00030684,2]
[319618654,1710891040321,-661.69,0.00030684,2]
[319618655,1710891040330,-584.34,0.00030684,2]
[319618656,1710891040340,-173.33,0.00030786,2]
[319618657,1710891040349,-298.3086265,0.00030872,2]
[319618658,1710891040359,-2909.04,0.00030958,2]
[319618659,1710891040367,-500.0,0.00030958,2]
[319618660,1710891040376,-399.37921809,0.00030958,2]
[319618661,1710891040385,-396.67,0.00030958,2]
[319618662,1710891040394,-500.0,0.00030958,2]
[319618663,1710891040403,-500.0,0.00030958,2]
[319618664,1710891040412,-500.0,0.00030958,2]
[319618665,1710891040422,-500.0,0.00030958,2]
[319618666,1710891040430,-1798.01,0.00030958,2]
[319618667,1710891040439,-400.71734515,0.00030958,2]
[319618668,1710891040449,-500.0,0.00030958,2]
[319618669,1710891040458,-2762.89,0.00030958,2]
[319618670,1710891040468,-500.0,0.00030958,2]
[319618671,1710891040477,-564.63,0.00030958,2]
[319618672,1710891040487,-500.0,0.00030958,2]
[319618673,1710891040496,-500.0,0.00030958,2]
[319618674,1710891040505,-500.0,0.00030958,2]
[319618675,1710891040514,-500.0,0.00030958,2]
[319618676,1710891040524,-528.8,0.00030958,2]
[319618677,1710891040533,-1685.14,0.00030958,2]
[319618678,1710891040542,-351.02517723,0.00030958,2]
[319618679,1710891040551,-293.2605297,0.00030958,2]
[319618680,1710891040564,-782.93,0.00030958,2]
[319618681,1710891040573,-731.93,0.00030958,2]
[319618682,1710891040582,-661.69,0.00030958,2]
[319618683,1710891040592,-584.34,0.00030958,2]
[319618684,1710891040601,-3940.59397657,0.00031231,4]
[319618685,1710891040611,-2909.04,0.00031232,2]
[319618686,1710891040620,-500.0,0.00031232,2]
[319618687,1710891040629,-500.0,0.00031232,2]
[319618688,1710891040639,-500.0,0.00031232,2]
[319618689,1710891040649,-597.53663094,0.00031232,2]
[319618690,1710891040659,-500.0,0.00031232,2]
[319618691,1710891040669,-1798.01,0.00031232,2]
[319618692,1710891040678,-500.0,0.00031232,2]
[319618693,1710891040687,-2762.89,0.00031232,2]
[319618694,1710891040697,-500.0,0.00031232,2]
[319618695,1710891040707,-564.63,0.00031232,2]
[319618696,1710891040717,-500.0,0.00031232,2]
[319618697,1710891040726,-500.0,0.00031232,2]
[319618698,1710891040736,-500.0,0.00031232,2]
[319618699,1710891040745,-500.0,0.00031232,2]
[319618700,1710891040755,-1685.14,0.00031232,2]
[319618701,1710891040765,-782.93,0.00031232,2]
[319618702,1710891040775,-731.93,0.00031232,2]
[319618703,1710891040784,-661.69,0.00031232,2]
[319618704,1710891040794,-584.34,0.00031232,2]
[319618705,1710891040803,-298.3086265,0.00031335,2]
[319618706,1710891040817,-2909.04,0.00031506,2]
[319618707,1710891040827,-500.0,0.00031506,2]
[319618708,1710891040837,-500.0,0.00031506,2]
[319618709,1710891040846,-500.0,0.00031506,2]
[319618710,1710891040856,-500.0,0.00031506,2]
[319618711,1710891040866,-1798.01,0.00031506,2]
[319618712,1710891040876,-155.4,0.00031506,2]
[319618713,1710891040885,-2762.89,0.00031506,2]
[319618714,1710891040895,-277.57,0.00031506,2]
[319618715,1710891040904,-564.63,0.00031506,2]
[319618716,1710891040914,-500.0,0.00031506,2]
[319618717,1710891040923,-500.0,0.00031506,2]
[319618718,1710891040933,-500.0,0.00031506,2]
[319618719,1710891040943,-490.47686227,0.00031506,2]
[319618720,1710891040953,-1685.14,0.00031506,2]
[319618721,1710891040962,-782.93,0.00031506,2]
[319618722,1710891040972,-731.93,0.00031506,2]
[319618723,1710891040982,-661.69,0.00031506,2]
[319618724,1710891040991,-584.34,0.00031506,2]
[319618725,1710891041000,-2909.04,0.0003178,2]
[319618726,1710891041010,-500.0,0.0003178,2]
[319618727,1710891041020,-500.0,0.0003178,2]
[319618728,1710891041029,-500.0,0.0003178,2]
[319618729,1710891041039,-531.95,0.0003178,2]
[319618730,1710891041049,-1798.01,0.0003178,2]
[319618731,1710891041064,-2762.89,0.0003178,2]
[319618732,1710891041074,-564.63,0.0003178,2]
[319618733,1710891041083,-500.0,0.0003178,2]
[319618734,1710891041094,-296.7,0.0003178,2]
[319618735,1710891041103,-500.0,0.0003178,2]
[319618736,1710891041113,-1685.14,0.0003178,2]
[319618737,1710891041123,-782.93,0.0003178,2]
[319618738,1710891041133,-731.93,0.0003178,2]
[319618739,1710891041145,-661.69,0.0003178,2]
[319618740,1710891041154,-584.34,0.0003178,2]
[319618741,1710891041166,-298.3086265,0.00031798,2]
[319618742,1710891041177,-2909.04,0.00032054,2]
[319618743,1710891041187,-500.0,0.00032054,2]
[319618744,1710891041197,-500.0,0.00032054,2]
[319618745,1710891041207,-500.0,0.00032054,2]
[319618746,1710891041217,-1798.01,0.00032054,2]
[319618747,1710891041228,-2762.89,0.00032054,2]
[319618748,1710891041237,-500.0,0.00032054,2]
[319618749,1710891041248,-564.63,0.00032054,2]
[319618750,1710891041259,-500.0,0.00032054,2]
[319618751,1710891041268,-1685.14,0.00032054,2]
[319618752,1710891041277,-782.93,0.00032054,2]
[319618753,1710891041287,-731.93,0.00032054,2]
[319618754,1710891041296,-661.69,0.00032054,2]
[319618755,1710891041306,-584.34,0.00032054,2]
[319618756,1710891041319,-2000.0,0.00032055,2]
[319618757,1710891041329,-260.57,0.000322,7]
[319618758,1710891041338,-150.0,0.000322,20]
[319618759,1710891041347,-200.0,0.00032212,2]
[319618760,1710891041356,-4794.3354,0.00032228,2]
[319618761,1710891041366,-298.3086265,0.0003226,2]
[319618762,1710891041376,-276.60587858,0.00032326,4]
[319618763,1710891041386,-547.52168762,0.00032327,4]
[319618764,1710891041395,-2909.04,0.00032328,2]
[319618765,1710891041405,-500.0,0.00032328,2]
[319618766,1710891041414,-500.0,0.00032328,2]
[319618767,1710891041423,-500.0,0.00032328,2]
[319618768,1710891041432,-1798.01,0.00032328,2]
[319618769,1710891041442,-2762.89,0.00032328,2]
[319618770,1710891041451,-350.69797363,0.00032328,2]
[319618771,1710891041460,-564.63,0.00032328,2]
[319618772,1710891041469,-500.0,0.00032328,2]
[319618773,1710891041479,-1685.14,0.00032328,2]
[319618774,1710891041488,-782.93,0.00032328,2]
[319618775,1710891041498,-731.93,0.00032328,2]
[319618776,1710891041507,-661.69,0.00032328,2]
[319618777,1710891041518,-584.34,0.00032328,2]
[319618778,1710891041527,-260.57,0.00032337,7]
[319618779,1710891041537,-520.07,0.00032474,7]
[319618780,1710891041546,-178.31,0.000325,2]
[319618781,1710891041555,-2909.04,0.00032602,2]
[319618782,1710891041568,-500.0,0.00032602,2]
[319618783,1710891041578,-500.0,0.00032602,2]
[319618784,1710891041588,-500.0,0.00032602,2]
[319618785,1710891041597,-1798.01,0.00032602,2]
[319618786,1710891041607,-2762.89,0.00032602,2]
[319618787,1710891041616,-564.63,0.00032602,2]
[319618789,1710891041625,-500.0,0.00032602,2]
[319618791,1710891041634,-1685.14,0.00032602,2]
[319618793,1710891041644,-782.93,0.00032602,2]
[319618794,1710891041653,-731.93,0.00032602,2]
[319618795,1710891041663,-661.69,0.00032602,2]
[319618796,1710891041673,-584.34,0.00032602,2]
[319618797,1710891041682,-298.3086265,0.00032723,2]
[319618798,1710891041692,-4566.99354993,0.00032801,4]
[319618799,1710891041701,-2909.04,0.00032876,2]
[319618800,1710891041711,-500.0,0.00032876,2]
[319618801,1710891041721,-500.0,0.00032876,2]
[319618802,1710891041730,-500.0,0.00032876,2]
[319618803,1710891041740,-1798.01,0.00032876,2]
[319618804,1710891041749,-2762.89,0.00032876,2]
[319618805,1710891041758,-564.63,0.00032876,2]
[319618806,1710891041767,-500.0,0.00032876,2]
[319618807,1710891041777,-1685.14,0.00032876,2]
[319618808,1710891041786,-782.93,0.00032876,2]
[319618809,1710891041795,-731.93,0.00032876,2]
[319618810,1710891041805,-661.69,0.00032876,2]
[319618811,1710891041818,-584.34,0.00032876,2]
[319618812,1710891041827,-186.67,0.00032877,2]
[319618813,1710891041836,-178.31,0.00033048,2]
[319618814,1710891041845,-2909.04,0.0003315,5]
[319618815,1710891041855,-500.0,0.0003315,5]
[319618816,1710891041864,-500.0,0.0003315,5]
[319618817,1710891041874,-500.0,0.0003315,5]
[319618818,1710891041883,-1798.01,0.0003315,5]
[319618819,1710891041892,-2762.89,0.0003315,5]
[319618820,1710891041901,-564.63,0.0003315,5]
[319618821,1710891041910,-500.0,0.0003315,5]
[319618822,1710891041919,-1685.14,0.0003315,5]
[319618823,1710891041928,-782.93,0.0003315,5]
[319618824,1710891041937,-731.93,0.0003315,5]
[319618825,1710891041947,-661.69,0.0003315,5]
[319618826,1710891041956,-584.34,0.0003315,5]
[319618827,1710891041966,-2212.83205252,0.00033158,2]
[319618828,1710891041975,-298.3086265,0.00033186,2]
[319618829,1710891041985,-220.16,0.00033377,2]
[319618830,1710891041994,-244.77108338,0.00033422,4]
[319618831,1710891042003,-155.0,0.00033422,4]
[319618832,1710891042012,-295.83829548,0.00033422,4]
[319618833,1710891042022,-170.06973904,0.00033422,4]
[319618834,1710891042031,-361.22596683,0.00033422,120]
[319618835,1710891042040,-423.79683076,0.00033422,4]
[319618836,1710891042049,-2971.50645971,0.00033422,4]
[319618837,1710891042058,-164.87044309,0.00033423,4]
[319618838,1710891042071,-155.45642114,0.00033423,4]
[319618839,1710891042079,-475.24574317,0.00033423,4]
[319618840,1710891042087,-5000.0,0.00033423,7]
[319618841,1710891042096,-2909.04,0.00033424,5]
[319618842,1710891042103,-500.0,0.00033424,5]
[319618843,1710891042111,-341.10277295,0.00033424,5]
[319618844,1710891042120,-500.0,0.00033424,5]
[319618845,1710891042129,-1798.01,0.00033424,5]
[319618846,1710891042140,-2762.89,0.00033424,5]
[319618847,1710891042152,-564.63,0.00033424,5]
[319618848,1710891042162,-500.0,0.00033424,5]
[319618849,1710891042173,-1685.14,0.00033424,5]
[319618850,1710891042185,-782.93,0.00033424,5]
[319618851,1710891042195,-731.93,0.00033424,5]
[319618852,1710891042205,-661.69,0.00033424,5]
[319618853,1710891042214,-584.34,0.00033424,5]
[319618854,1710891042225,-2000.0,0.00033491,2]
[319618855,1710891042235,-180.67837664,0.0003357,20]
[319618856,1710891042245,-356.46,0.00033596,2]
[319618857,1710891042254,-298.3086265,0.00033649,2]
[319618858,1710891042264,-1334.39,0.00033655,2]
[319618859,1710891042274,-155.0,0.00033696,4]
[319618860,1710891042284,-198.72663122,0.00033696,4]
[319618862,1710891042292,-190.56209382,0.00033696,4]
[319618863,1710891042301,-160.0,0.00033696,4]
[319618866,1710891042315,-292.53427864,0.00033696,4]
[319618869,1710891042324,-155.0,0.00033696,4]
[319618872,1710891042333,-2444.87749052,0.00033696,4]
[319618875,1710891042342,-155.0,0.00033696,4]
[319618877,1710891042351,-197.59547689,0.00033696,4]
[319618880,1710891042361,-235.95798628,0.00033697,2]
[319618884,1710891042370,-307.50266702,0.00033697,4]
[319618887,1710891042380,-3913.47007315,0.00033697,4]
[319618889,1710891042389,-2909.04,0.00033698,5]
[319618891,1710891042399,-500.0,0.00033698,5]
[319618894,1710891042408,-500.0,0.00033698,5]
[319618897,1710891042417,-1798.01,0.00033698,5]
[319618900,1710891042426,-2762.89,0.00033698,5]
[319618903,1710891042436,-564.63,0.00033698,5]
[319618907,1710891042445,-500.0,0.00033698,5]
[319618913,1710891042456,-1685.14,0.00033698,5]
[319618917,1710891042466,-782.93,0.00033698,5]
[319618921,1710891042476,-731.93,0.00033698,5]
[319618925,1710891042485,-661.69,0.00033698,5]
[319618929,1710891042494,-584.34,0.00033698,5]
[319618936,1710891042504,-2909.04,0.00033972,5]
[319618940,1710891042514,-500.0,0.00033972,5]
[319618945,1710891042524,-500.0,0.00033972,5]
[319618947,1710891042533,-1798.01,0.00033972,5]
[319618951,1710891042542,-2762.89,0.00033972,5]
[319618955,1710891042552,-564.63,0.00033972,5]
[319618958,1710891042565,-544.16758437,0.00033972,5]
[319618961,1710891042575,-1685.14,0.00033972,5]
[319618965,1710891042584,-782.93,0.00033972,5]
[319618969,1710891042594,-731.93,0.00033972,5]
[319618972,1710891042604,-661.69,0.00033972,5]
[319618975,1710891042613,-584.34,0.00033972,5]
[319618977,1710891042623,-298.3086265,0.00034111,2]
[319618979,1710891042633,-2909.04,0.00034246,5]
[319618981,1710891042643,-500.0,0.00034246,5]
[319618983,1710891042652,-380.49241081,0.00034246,5]
[319618985,1710891042662,-1798.01,0.00034246,5]
[319618987,1710891042671,-2762.89,0.00034246,5]
[319618989,1710891042680,-564.63,0.00034246,5]
[319618992,1710891042691,-1685.14,0.00034246,5]
[319618994,1710891042700,-782.93,0.00034246,5]
[319618996,1710891042710,-731.93,0.00034246,5]
[319618998,1710891042720,-661.69,0.00034246,5]
[319618999,1710891042729,-584.34,0.00034246,5]
[319619000,1710891042738,-2909.04,0.0003452,5]
[319619001,1710891042748,-500.0,0.0003452,5]
[319619003,1710891042758,-1798.01,0.0003452,5]
[319619005,1710891042769,-2762.89,0.0003452,5]
[319619007,1710891042779,-564.63,0.0003452,5]
[319619009,1710891042789,-1685.14,0.0003452,5]
[319619011,1710891042799,-782.93,0.0003452,5]
[319619013,1710891042810,-731.93,0.0003452,5]
[319619015,1710891042822,-661.69,0.0003452,5]
[319619016,1710891042832,-584.34,0.0003452,5]
[319619017,1710891042842,-165.0,0.00034528,120]
[319619018,1710891042852,-298.3086265,0.00034574,2]
[319619019,1710891042863,-2909.04,0.00034794,5]
[319619020,1710891042872,-495.07367882,0.00034794,5]
[319619021,1710891042882,-1798.01,0.00034794,5]
[319619022,1710891042892,-2762.89,0.00034794,5]
[319619023,1710891042901,-564.63,0.00034794,5]
[319619024,1710891042911,-1685.14,0.00034794,5]
[319619025,1710891042921,-782.93,0.00034794,5]
[319619026,1710891042930,-731.93,0.00034794,5]
[319619027,1710891042940,-661.69,0.00034794,5]
[319619028,1710891042949,-584.34,0.00034794,5]
[319619029,1710891042958,-3574.91712351,0.00034868,2]
[319619030,1710891042968,-260.49820869,0.00034868,2]
[319619031,1710891042977,-196871.2537,0.00034968,2]
[319619032,1710891042986,-5379.9805,0.00034968,2]
[319619033,1710891042995,-16793.3594,0.00034968,2]
[319619034,1710891043004,-599.9999995,0.00035,36]
[319619035,1710891043014,-298.3086265,0.00035037,2]
[319619036,1710891043024,-2909.04,0.00035068,5]
[319619037,1710891043033,-1798.01,0.00035068,5]
[319619038,1710891043043,-2762.89,0.00035068,5]
[319619039,1710891043053,-564.63,0.00035068,5]
[319619040,1710891043068,-1685.14,0.00035068,5]
[319619041,1710891043077,-782.93,0.00035068,5]
[319619042,1710891043087,-731.93,0.00035068,5]
[319619043,1710891043098,-661.69,0.00035068,5]
[319619044,1710891043107,-584.34,0.00035068,5]
[319619045,1710891043117,-100000.0,0.00035242,2]
[319619046,1710891043126,-1000.0,0.00035242,2]
[319619048,1710891043137,-19538.0882,0.00035242,2]
[319619050,1710891043147,-2909.04,0.00035342,5]
[319619052,1710891043157,-1798.01,0.00035342,5]
[319619053,1710891043171,-2762.89,0.00035342,5]
[319619054,1710891043181,-564.63,0.00035342,5]
[319619055,1710891043190,-1685.14,0.00035342,5]
[319619056,1710891043199,-782.93,0.00035342,5]
[319619057,1710891043208,-731.93,0.00035342,5]
[319619058,1710891043218,-661.69,0.00035342,5]
[319619059,1710891043227,-584.34,0.00035342,5]
[319619060,1710891043238,-3982.78,0.0003542,2]
[319619061,1710891043248,-200.0,0.00035433,2]
[319619062,1710891043258,-298.3086265,0.00035499,2]
[319619063,1710891043268,-2909.04,0.00035616,5]
[319619064,1710891043281,-1798.01,0.00035616,5]
[319619065,1710891043291,-2762.89,0.00035616,5]
[319619066,1710891043300,-564.63,0.00035616,5]
[319619067,1710891043314,-1685.14,0.00035616,5]
[319619068,1710891043323,-782.93,0.00035616,5]
[319619069,1710891043333,-731.93,0.00035616,5]
[319619070,1710891043342,-661.69,0.00035616,5]
[319619071,1710891043351,-584.34,0.00035616,5]
[319619072,1710891043361,-500.0,0.00035616,8]
[319619073,1710891043370,-4566.99354993,0.00035812,8]
[319619074,1710891043379,-800.0,0.00035875,10]
[319619075,1710891043388,-2909.04,0.0003589,5]
[319619076,1710891043398,-1798.01,0.0003589,5]
[319619077,1710891043407,-2762.89,0.0003589,5]
[319619078,1710891043417,-564.63,0.0003589,5]
[319619079,1710891043426,-1685.14,0.0003589,5]
[319619080,1710891043436,-782.93,0.0003589,5]
[319619081,1710891043444,-731.93,0.0003589,5]
[319619082,1710891043454,-661.69,0.0003589,5]
[319619083,1710891043463,-584.34,0.0003589,5]
[319619084,1710891043473,-298.3086265,0.00035962,2]
[319619085,1710891043482,-264.12646815,0.00036046,2]
[319619086,1710891043491,-2909.04,0.00036164,5]
[319619087,1710891043501,-1798.01,0.00036164,5]
[319619088,1710891043510,-2762.89,0.00036164,5]
[319619089,1710891043519,-564.63,0.00036164,5]
[319619090,1710891043528,-1685.14,0.00036164,5]
[319619091,1710891043538,-782.93,0.00036164,5]
[319619092,1710891043547,-731.93,0.00036164,5]
[319619093,1710891043557,-661.69,0.00036164,5]
[319619094,1710891043571,-584.34,0.00036164,5]
[319619095,1710891043581,-220.16,0.00036411,2]
[319619096,1710891043591,-298.3086265,0.00036425,2]
[319619097,1710891043601,-2909.25237243,0.00036438,5]
[319619098,1710891043611,-1798.11569864,0.00036438,5]
[319619099,1710891043620,-2763.09326042,0.00036438,5]
[319619100,1710891043630,-564.79692144,0.00036438,5]
[319619101,1710891043639,-1685.29845746,0.00036438,5]
[319619102,1710891043649,-783.1367466,0.00036438,5]
[319619103,1710891043659,-731.96927717,0.00036438,5]
[319619104,1710891043669,-661.89452942,0.00036438,5]
[319619105,1710891043679,-584.5309736,0.00036438,5]
[319619106,1710891043689,-185.11,0.00036568,120]
[319619107,1710891043698,-760.25926689,0.000366,2]
[319619108,1710891043708,-760.25926685,0.000366,2]
[319619109,1710891043798,-760.25926685,0.000366,2]
[319619110,1710891043816,-760.25926685,0.000366,2]
[319619111,1710891043826,-500.0,0.00036712,61]
[319619112,1710891043835,-264.12646815,0.00036871,2]
[319619113,1710891043845,-500.0,0.00036876,61]
[319619114,1710891043855,-2000.0,0.00036879,2]
[319619115,1710891043865,-298.3086265,0.00036887,2]
[319619116,1710891043875,-500.28,0.00037002,2]
[319619117,1710891043886,-2212.83205252,0.00037077,2]
[319619118,1710891043895,-298.3086265,0.0003735,2]
[319619119,1710891043905,-500.0,0.00037534,63]
[319619120,1710891043915,-264.12646815,0.00037696,2]
[319619121,1710891043924,-500.0,0.00037698,63]
[319619122,1710891043934,-2618.5876676,0.00037756,3]
[319619123,1710891043943,-298.3086265,0.00037813,2]
[319619124,1710891043953,-298.3086265,0.00038276,2]
[319619125,1710891043962,-500.0,0.00038356,65]
[319619126,1710891043972,-7816.89,0.00038356,2]
[319619127,1710891043982,-200.0,0.00038356,2]
[319619128,1710891043991,-500.0,0.0003852,65]
[319619129,1710891044001,-264.12646815,0.00038521,2]
[319619130,1710891044010,-200.0,0.00038654,2]
[319619131,1710891044020,-298.3086265,0.00038738,2]
[319619132,1710891044029,-5800.0,0.00038783,2]
[319619133,1710891044038,-4566.99354993,0.00038823,12]
[319619134,1710891044047,-165.0,0.00038843,120]
[319619135,1710891044057,-181487.95271576,0.000389,5]
[319619136,1710891044069,-760.25926685,0.00039134,2]
[319619137,1710891044078,-306.94067502,0.00039178,67]
[319619138,1710891044088,-298.3086265,0.00039201,3]
[319619139,1710891044097,-500.0,0.00039342,67]
[319619140,1710891044106,-264.12646815,0.00039346,2]
[319619141,1710891044115,-173.33,0.00039389,2]
[319619142,1710891044125,-298.3086265,0.00039664,5]
[319619143,1710891044135,-3339.15497592,0.0004,4]
[319619144,1710891044149,-192.0074728,0.0004,2]
[319619145,1710891044159,-387.64201907,0.0004001,15]
[319619146,1710891044169,-1000.0,0.0004002,2]
[319619147,1710891044178,-1400.0,0.00040112,14]
[319619148,1710891044191,-298.3086265,0.00040126,7]
[319619149,1710891044201,-500.0,0.00040164,69]
[319619150,1710891044210,-264.12646815,0.00040171,2]
[319619151,1710891044220,-2000.0,0.0004039,2]
[319619152,1710891044231,-200.0,0.00040457,20]
[319619153,1710891044241,-298.3086265,0.00040589,8]
[319619154,1710891044251,-368.33243422,0.00040986,71]
[319619155,1710891044260,-2212.83205252,0.00040996,2]
[319619156,1710891044269,-264.12646815,0.00040996,2]
[319619157,1710891044279,-298.3086265,0.00041052,10]
[319619158,1710891044288,-7816.89,0.00041095,2]
[319619159,1710891044298,-4000.0,0.00041096,2]
[319619160,1710891044307,-183.0,0.00041096,2]
[319619161,1710891044318,-298.3086265,0.00041514,12]
[319619162,1710891044328,-4566.99354993,0.00041834,16]
[319619163,1710891044337,-298.3086265,0.00041977,14]
[319619164,1710891044346,-151.0,0.00042342,2]
[319619165,1710891044356,-298.3086265,0.0004244,15]
[319619166,1710891044365,-760.25926685,0.00042587,4]
[319619167,1710891044375,-298.3086265,0.00042902,17]
[319619168,1710891044384,-298.3086265,0.00043365,19]
[319619169,1710891044394,-2000.0,0.00043412,2]
[319619170,1710891044404,-1162.57479524,0.00043825,2]
[319619171,1710891044413,-298.3086265,0.00043828,21]
[319619172,1710891044423,-2312033.24929079,0.00043835,2]
[319619173,1710891044432,-7816.89,0.00043835,6]
[319619174,1710891044442,-298.3086265,0.00044291,22]
[319619175,1710891044451,-298.3086265,0.00044753,24]
[319619176,1710891044461,-4566.99354993,0.00044845,20]
[319619177,1710891044470,-3124.60554053,0.00044884,2]
[319619178,1710891044480,-3574.91712349,0.00044884,2]
[319619179,1710891044490,-260.49820868,0.00044884,2]
[319619180,1710891044499,-32925.86003633,0.00045,15]
[319619181,1710891044509,-436.68727913,0.00045,4]
[319619182,1710891044518,-169.43339483,0.00045,7]
[319619183,1710891044527,-5510.17734417,0.00045,60]
[319619184,1710891044536,-800.0,0.00045039,25]
[319619185,1710891044545,-200.0,0.00045039,30]
[319619186,1710891044554,-233.0,0.00045205,7]
[319619187,1710891044565,-298.3086265,0.00045216,26]
[319619188,1710891044575,-233.0,0.00045616,30]
[319619189,1710891044584,-298.3086265,0.00045679,28]
[319619190,1710891044593,-150.0,0.00046,2]
[319619191,1710891044602,-233.0,0.00046027,30]
[319619192,1710891044612,-760.25926685,0.0004604,7]
[319619193,1710891044621,-298.3086265,0.00046141,30]
[319619194,1710891044631,-151.0,0.00046438,30]
[319619195,1710891044640,-233.0,0.00046438,30]
[319619196,1710891044651,-7816.89,0.00046575,6]
[319619197,1710891044660,-298.3086265,0.00046604,31]
[319619198,1710891044670,-3982.78,0.00046653,120]
[319619199,1710891044680,-151.0,0.00046849,30]
[319619200,1710891044690,-233.0,0.00046849,30]
[319619201,1710891044700,-153.0,0.00046849,30]
[319619202,1710891044710,-298.3086265,0.00047067,33]
[319619203,1710891044720,-151.0,0.0004726,30]
[319619204,1710891044730,-233.0,0.0004726,30]
[319619205,1710891044740,-153.0,0.0004726,30]
[319619206,1710891044750,-298.3086265,0.00047529,35]
[319619207,1710891044760,-151.0,0.00047671,30]
[319619208,1710891044770,-233.0,0.00047671,30]
[319619209,1710891044780,-153.0,0.00047671,30]
[319619210,1710891044790,-4566.99354993,0.00047856,23]
[319619211,1710891044800,-150.63553347,0.0004792,30]
[319619212,1710891044812,-150.26173594,0.00047983,30]
[319619213,1710891044822,-173.33,0.00047992,2]
[319619214,1710891044831,-298.3086265,0.00047992,37]
[319619215,1710891044840,-19158.28292643,0.00048,10]
[319619216,1710891044849,-151.0,0.00048082,30]
[319619217,1710891044859,-233.0,0.00048082,30]
[319619218,1710891044868,-153.0,0.00048082,30]
[319619219,1710891044878,-168.4932242,0.00048099,30]
[319619220,1710891044888,-2000.0,0.00048159,2]
[319619221,1710891044897,-500.28,0.00048235,120]
[319619222,1710891044907,-150.63553347,0.00048372,30]
[319619223,1710891044917,-298.3086265,0.00048455,38]
[319619224,1710891044926,-151.0,0.00048493,30]
[319619225,1710891044935,-233.0,0.00048493,30]
[319619226,1710891044944,-153.0,0.00048493,30]
[319619227,1710891044954,-150.26173594,0.00048597,30]
[319619228,1710891044963,-2134.0,0.000487,117]